fUSD/lending_fUSD_20240426
["ID","MTS","AMOUNT","RATE_DAILY","PERIOD"]
[323707724,1714174238784,-500.0,0.00012869,2]
[323707725,1714174238793,-500.0,0.00012869,2]
[323707726,1714174238802,-500.0,0.00012869,2]
[323707727,1714174238811,-511.47,0.00012869,2]
[323707728,1714174238820,-500.0,0.00012869,2]
[323707729,1714174238829,-2100.66,0.00012869,2]
[323707730,1714174238838,-500.0,0.00012869,2]
[323707731,1714174238848,-500.0,0.00012869,2]
[323707732,1714174238859,-869.05,0.00012869,2]
[323707733,1714174238868,-500.0,0.00012869,2]
[323707734,1714174238877,-500.0,0.00012869,2]
[323707735,1714174238887,-500.0,0.00012869,2]
[323707736,1714174238897,-839.19,0.00012869,2]
[323707737,1714174238906,-500.0,0.00012869,2]
[323707738,1714174238915,-1221.59250652,0.0001287,2]
[323707739,1714174238925,-1110.236482,0.00012871,2]
[323707740,1714174238935,-1110.236482,0.00012879,2]
[323707741,1714174238944,-1110.236482,0.00012886,2]
[323707742,1714174238953,-1110.236482,0.00012893,2]
[323707743,1714174238962,-500.0,0.00012894,2]
[323707744,1714174238972,-500.0,0.00012894,2]
[323707745,1714174238980,-500.0,0.00012894,2]
[323707746,1714174238990,-500.0,0.00012894,2]
[323707747,1714174239000,-500.0,0.00012894,2]
[323707748,1714174239009,-500.0,0.00012894,2]
[323707749,1714174239018,-776.03,0.00012894,2]
[323707750,1714174239027,-500.0,0.00012894,2]
[323707751,1714174239036,-500.0,0.00012894,2]
[323707752,1714174239045,-500.0,0.00012894,2]
[323707753,1714174239054,-820.92,0.00012894,2]
[323707754,1714174239064,-500.0,0.00012894,2]
[323707755,1714174239072,-500.0,0.00012894,2]
[323707756,1714174239082,-500.0,0.00012894,2]
[323707757,1714174239091,-1147.02,0.00012894,2]
[323707758,1714174239100,-500.0,0.00012894,2]
[323707759,1714174239110,-500.0,0.00012894,2]
[323707760,1714174239119,-500.0,0.00012895,2]
[323707761,1714174239128,-500.0,0.00012895,2]
[323707762,1714174239138,-422.90417892,0.00012895,2]
[323707763,1714174239147,-500.0,0.00012895,2]
[323707764,1714174239157,-500.0,0.00012895,2]
[323707765,1714174239166,-888.6,0.00012895,2]
[323707766,1714174239175,-150.0,0.00012895,2]
[323707767,1714174239185,-200.54,0.00012895,2]
[323707768,1714174239194,-622.9,0.00012895,2]
[323707769,1714174239204,-500.0,0.00012895,2]
[323707770,1714174239214,-500.0,0.00012895,2]
[323707771,1714174239223,-500.0,0.00012895,2]
[323707772,1714174239233,-500.0,0.00012895,2]
[323707773,1714174239244,-500.0,0.00012895,2]
[323707774,1714174239254,-500.0,0.00012895,2]
[323707775,1714174239264,-500.0,0.00012895,2]
[323707776,1714174239274,-632.48,0.00012895,2]
[323707777,1714174239283,-500.0,0.00012895,2]
[323707778,1714174239293,-500.0,0.00012895,2]
[323707779,1714174239302,-500.0,0.00012895,2]
[323707780,1714174239312,-500.0,0.00012895,2]
[323707781,1714174239321,-500.0,0.00012895,2]
[323707782,1714174239330,-500.0,0.00012895,2]
[323707783,1714174239339,-500.0,0.00012895,2]
[323707784,1714174239349,-500.0,0.00012895,2]
[323707785,1714174239361,-500.0,0.00012895,2]
[323707786,1714174239370,-500.0,0.00012895,2]
[323707787,1714174239381,-500.0,0.00012895,2]
[323707788,1714174239391,-500.0,0.00012895,2]
[323707789,1714174239400,-500.0,0.00012895,2]
[323707790,1714174239409,-500.0,0.00012895,2]
[323707791,1714174239419,-500.0,0.00012895,2]
[323707792,1714174239428,-500.0,0.00012895,2]
[323707793,1714174239437,-371.37,0.00012895,2]
[323707794,1714174239446,-500.0,0.00012895,2]
[323707795,1714174239456,-500.0,0.00012895,2]
[323707796,1714174239466,-500.0,0.00012895,2]
[323707797,1714174239475,-500.0,0.00012895,2]
[323707798,1714174239484,-500.0,0.00012895,2]
[323707799,1714174239493,-500.0,0.00012895,2]
[323707800,1714174239502,-500.0,0.00012895,2]
[323707801,1714174239511,-500.0,0.00012895,2]
[323707802,1714174239519,-500.0,0.00012895,2]
[323707803,1714174239528,-500.0,0.00012896,2]
[323707804,1714174239537,-5471.16073475,0.00012899,2]
[323707805,1714174239546,-500.0,0.00012899,2]
[323707806,1714174239555,-1022.27,0.00012899,2]
[323707807,1714174239564,-500.0,0.00012899,2]
[323707808,1714174239573,-361.00424718,0.00012899,2]
[323707809,1714174239582,-500.0,0.00012899,2]
[323707810,1714174239591,-500.0,0.00012899,2]
[323707811,1714174239600,-151.61,0.00012899,2]
[323707812,1714174239610,-500.0,0.00012899,2]
[323707813,1714174239619,-500.0,0.00012899,2]
[323707814,1714174239628,-500.0,0.00012899,2]
[323707815,1714174239637,-196.47,0.00012899,2]
[323707816,1714174239646,-500.0,0.00012899,2]
[323707817,1714174239655,-547.43,0.00012899,2]
[323707818,1714174239665,-500.0,0.00012899,2]
[323707819,1714174239674,-500.0,0.00012899,2]
[323707820,1714174239683,-551.54,0.00012899,2]
[323707821,1714174239691,-500.0,0.00012899,2]
[323707822,1714174239701,-500.0,0.00012899,2]
[323707823,1714174239710,-500.0,0.00012899,2]
[323707824,1714174239718,-203.61231704,0.00012899,2]
[323707825,1714174239728,-500.0,0.00012899,2]
[323707826,1714174239737,-269.03,0.00012899,2]
[323707827,1714174239746,-500.0,0.00012899,2]
[323707828,1714174239755,-584.13801515,0.00012899,2]
[323707829,1714174239763,-500.0,0.00012899,2]
[323707830,1714174239772,-500.0,0.00012899,2]
[323707832,1714174239781,-578.46,0.00012899,2]
[323707834,1714174239790,-500.0,0.00012899,2]
[323707835,1714174239798,-500.0,0.00012899,2]
[323707836,1714174239807,-500.0,0.00012899,2]
[323707837,1714174239817,-500.0,0.00012899,2]
[323707838,1714174239826,-500.0,0.00012899,2]
[323707839,1714174239835,-500.0,0.00012899,2]
[323707840,1714174239846,-500.0,0.00012899,2]
[323707841,1714174239860,-297.79,0.00012899,2]
[323707842,1714174239869,-500.0,0.00012899,2]
[323707843,1714174239878,-500.0,0.00012899,2]
[323707844,1714174239888,-371.8624966,0.00012899,2]
[323707845,1714174239898,-501.34966844,0.00012899,2]
[323707846,1714174239907,-500.0,0.00012899,2]
[323707848,1714174239916,-500.0,0.00012899,2]
[323707849,1714174239926,-500.0,0.00012899,2]
[323707850,1714174239935,-500.0,0.00012899,2]
[323707851,1714174239944,-500.0,0.00012899,2]
[323707852,1714174239954,-500.0,0.00012899,2]
[323707853,1714174239963,-792.56,0.00012899,2]
[323707854,1714174239973,-500.0,0.00012899,2]
[323707855,1714174239982,-500.0,0.00012899,2]
[323707856,1714174239991,-500.0,0.00012899,2]
[323707857,1714174240001,-500.0,0.00012899,2]
[323707858,1714174240010,-500.0,0.00012899,2]
[323707859,1714174240019,-500.0,0.00012899,2]
[323707860,1714174240029,-500.0,0.00012899,2]
[323707861,1714174240038,-500.0,0.00012899,2]
[323707862,1714174240048,-500.0,0.00012899,2]
[323707863,1714174240057,-500.0,0.00012899,2]
[323707864,1714174240067,-500.0,0.00012899,2]
[323707865,1714174240076,-500.0,0.00012899,2]
[323707866,1714174240085,-500.0,0.00012899,2]
[323707867,1714174240094,-500.0,0.00012899,2]
[323707868,1714174240103,-500.0,0.00012899,2]
[323707869,1714174240112,-500.0,0.00012899,2]
[323707870,1714174240121,-500.0,0.00012899,2]
[323707871,1714174240130,-500.0,0.00012899,2]
[323707872,1714174240140,-500.0,0.00012899,2]
[323707873,1714174240149,-500.0,0.00012899,2]
[323707874,1714174240158,-500.0,0.00012899,2]
[323707875,1714174240167,-500.0,0.00012899,2]
[323707876,1714174240176,-500.0,0.00012899,2]
[323707877,1714174240185,-500.0,0.00012899,2]
[323707878,1714174240194,-500.0,0.00012899,2]
[323707879,1714174240203,-719.73,0.00012899,2]
[323707880,1714174240212,-500.0,0.00012899,2]
[323707881,1714174240221,-500.0,0.00012899,2]
[323707882,1714174240230,-500.0,0.00012899,2]
[323707883,1714174240239,-500.0,0.00012899,2]
[323707884,1714174240248,-500.0,0.00012899,2]
[323707885,1714174240257,-500.0,0.00012899,2]
[323707886,1714174240267,-500.0,0.00012899,2]
[323707887,1714174240276,-500.0,0.00012899,2]
[323707888,1714174240285,-500.0,0.00012899,2]
[323707889,1714174240294,-500.0,0.00012899,2]
[323707890,1714174240303,-500.0,0.00012899,2]
[323707891,1714174240313,-500.0,0.00012899,2]
[323707892,1714174240321,-500.0,0.00012899,2]
[323707893,1714174240330,-500.0,0.00012899,2]
[323707894,1714174240340,-500.0,0.00012899,2]
[323707895,1714174240349,-500.0,0.00012899,2]
[323707896,1714174240358,-500.0,0.00012899,2]
[323707897,1714174240367,-500.0,0.00012899,2]
[323707898,1714174240376,-500.0,0.00012899,2]
[323707899,1714174240387,-453.0094624,0.00012899,2]
[323707900,1714174240397,-500.0,0.00012899,2]
[323707901,1714174240407,-500.0,0.00012899,2]
[323707902,1714174240416,-635.79,0.00012899,2]
[323707903,1714174240428,-500.0,0.00012899,2]
[323707904,1714174240437,-500.0,0.00012899,2]
[323707905,1714174240447,-500.0,0.00012899,2]
[323707906,1714174240458,-500.0,0.00012899,2]
[323707907,1714174240468,-500.0,0.00012899,2]
[323707908,1714174240477,-500.0,0.00012899,2]
[323707909,1714174240486,-500.0,0.00012899,2]
[323707910,1714174240495,-500.0,0.00012899,2]
[323707911,1714174240505,-500.0,0.00012899,2]
[323707912,1714174240515,-641.15,0.00012899,2]
[323707913,1714174240525,-500.0,0.00012899,2]
[323707914,1714174240535,-500.0,0.00012899,2]
[323707915,1714174240545,-366.0562541,0.000129,2]
[323707916,1714174240554,-10000.0,0.000129,2]
[323707917,1714174240564,-1000.0,0.000129,2]
[323707918,1714174240575,-2047.02313827,0.000129,2]
[323707919,1714174240585,-375.60552595,0.000129,2]
[323707920,1714174240594,-345.55325494,0.000129,2]
[323707921,1714174240604,-45030.54654005,0.000129,2]
[323707922,1714174240637,-2002.0899956,0.000129,2]
[323707923,1714174240648,-2586.70432895,0.000129,2]
[323707924,1714174240659,-18965.09999997,0.000129,2]
[323707925,1714174240671,-10022.86557066,0.000129,2]
[323707926,1714174240682,-53069.75452275,0.000129,2]
[323707927,1714174240692,-181.38160287,0.000129,2]
[323707928,1714174240701,-599.0425219,0.000129,2]
[323707929,1714174240711,-435.90618638,0.000129,2]
[323707930,1714174240721,-421.26323246,0.000129,2]
[323707931,1714174240731,-387.78967935,0.000129,2]
[323707932,1714174240741,-1611.60788394,0.000129,2]
[323707933,1714174240751,-1110.236482,0.000129,2]
[323707934,1714174240762,-172.8,0.00012974,2]
[323707935,1714174240773,-953.4450874,0.0001299,2]
[323707936,1714174240783,-159.37108306,0.0001299,2]
[323707937,1714174240793,-159.37108306,0.0001299,2]
[323707938,1714174240803,-953.4450874,0.00012991,2]
[323707939,1714174240813,-953.4450874,0.00012991,2]
[323707940,1714174240822,-953.4450874,0.00012991,2]
[323707941,1714174240831,-953.4450874,0.00012991,2]
[323707942,1714174240840,-953.4450874,0.00012991,2]
[323707943,1714174240854,-684.26539504,0.00012999,2]
[323707944,1714174240863,-207.1988387,0.00012999,2]
[323707945,1714174240873,-3228.59278424,0.00012999,2]
[323707946,1714174240882,-2252.17846306,0.00012999,2]
[323707947,1714174240894,-500.0,0.00012999,2]
[323707948,1714174240903,-500.0,0.00012999,2]
[323707949,1714174240912,-935.0,0.00013,2]
[323707950,1714174240922,-56687.16386634,0.00013,2]
[323707951,1714174240935,-392.8525,0.00013,2]
[323707952,1714174240946,-1023.22456633,0.00013,2]
[323707953,1714174240969,-5208.92676619,0.00013,2]
[323707954,1714174241097,-10024.34398164,0.000129,2]
[323707955,1714174241106,-30024.39084096,0.00013,2]
[323707956,1714174241119,-284.64976911,0.00013,2]
[323707957,1714174241131,-575.742,0.00013,2]
[323707958,1714174241143,-3896.92962932,0.00013,2]
[323707959,1714174241155,-1026.76,0.00013,2]
[323707960,1714174241166,-4170.03465609,0.00013,2]
[323707961,1714174241177,-1603.637526,0.00013,2]
[323707962,1714174241192,-1893.7,0.00013,2]
[323707963,1714174241203,-3456.9,0.00013,2]
[323707964,1714174241216,-455.07799912,0.00013,2]
[323707976,1714174242957,-409.17053992,0.00012,2]
[323707977,1714174242966,-49296.02141659,0.00013,2]
[323707987,1714174245981,-500.0,0.00012868,2]
[323707988,1714174245991,-500.0,0.00012869,2]
[323707989,1714174246000,-599.62,0.00012894,2]
[323707990,1714174246009,-155.0,0.00012999,2]
[323707991,1714174246018,-4663.50205847,0.00013,2]
[323707992,1714174246034,-513.125,0.00013,2]
[323707993,1714174246045,-355.41699999,0.00013,2]
[323708087,1714175432083,-155.0,9.74e-05,2]
[323708088,1714175432093,-175.56126775,9.74e-05,2]
[323708089,1714175432134,-223.34577485,9.74e-05,2]
[323708090,1714175432144,-234.57,9.741e-05,2]
[323708091,1714175432154,-606.10422459,0.00010797,2]
[323708092,1714175432166,-181.31585154,0.00010797,2]
[323708093,1714175432176,-155.78336681,0.00010798,2]
[323708094,1714175432185,-155.0,0.000109,2]
[323708095,1714175432196,-71.90471734,0.00011547,2]
[323708096,1714175432207,-100.89528266,0.00011547,2]
[323708097,1714175432218,-2109.898915,0.0001156,2]
[323708098,1714175432229,-661.87135703,0.0001156,2]
[323708099,1714175432243,-1608.3385607,0.0001156,2]
[323708100,1714175432254,-2291.30000015,0.0001156,2]
[323708101,1714175432267,-811.61511842,0.0001156,2]
[323708102,1714175432278,-408.132,0.0001156,2]
[323708103,1714175432290,-4934.82617957,0.0001156,2]
[323708104,1714175432301,-2184.95758574,0.0001156,2]
[323708105,1714175432314,-3351.5,0.0001156,2]
[323708108,1714175432327,-556.32133658,0.0001156,2]
[323708157,1714175438037,-672.57,0.0001156,2]
[323708192,1714175440032,-638.7325,0.0001156,2]
[323708194,1714175440043,-680.21931978,0.0001156,2]
[323708206,1714175440191,-592.01188316,0.0001156,2]
[323708207,1714175440256,-1382.61525953,0.0001156,2]
[323708208,1714175440268,-1015.08998434,0.0001156,2]
[323708209,1714175440278,-895.85,0.00011578,2]
[323708210,1714175440287,-287.1,0.00011655,2]
[323708211,1714175440296,-291.27394191,0.00011698,2]
[323708212,1714175440306,-1538.69531999,0.00011698,2]
[323708213,1714175440317,-280.65468001,0.00011698,2]
[323708214,1714175440327,-571.46490098,0.00011698,2]
[323708215,1714175440339,-698.28670024,0.00011698,2]
[323708216,1714175440404,-513.19839878,0.00011698,2]
[323708217,1714175440414,-150.99,0.00011698,2]
[323708218,1714175440424,-299.99,0.00011698,2]
[323708219,1714175440435,-165.3,0.00011705,2]
[323708220,1714175440443,-264.32,0.00011804,2]
[323708221,1714175440454,-499.99,0.00011804,2]
[323708222,1714175440463,-155.78336681,0.00011848,2]
[323708223,1714175440472,-543.79,0.00011856,2]
[323708224,1714175440481,-1748.09424184,0.00012,2]
[323708225,1714175440491,-1338.97266291,0.00012,2]
[323708246,1714175443073,-942.66174752,0.00012,2]
[323708251,1714175443129,-335.3193,0.00012,2]
[323708252,1714175443181,-805.291941,0.00012,2]
[323708253,1714175443287,-11583.25271459,0.00012,2]
[323708254,1714175443297,-5000.0,0.00012,2]
[323708255,1714175443306,-234.57,0.00012005,2]
[323708256,1714175443316,-516.0,0.00012301,2]
[323708257,1714175443328,-1000.0,0.00012698,2]
[323708258,1714175443338,-32551.6919324,0.000128,2]
[323708259,1714175443347,-7500.0,0.000128,2]
[323708260,1714175443356,-310.95271868,0.000128,2]
[323708261,1714175443365,-10000.0,0.00012868,2]
[323708262,1714175443374,-500.0,0.00012868,2]
[323708263,1714175443383,-500.0,0.00012868,2]
[323708264,1714175443392,-500.0,0.00012868,2]
[323708265,1714175443401,-500.0,0.00012868,2]
[323708266,1714175443410,-628.21453734,0.00012868,2]
[323708267,1714175443419,-208.13,0.00012868,2]
[323708268,1714175443429,-500.0,0.00012868,2]
[323708269,1714175443439,-500.0,0.00012868,2]
[323708270,1714175443449,-199.76219593,0.00012868,2]
[323708271,1714175443459,-500.0,0.00012868,2]
[323708272,1714175443469,-500.0,0.00012868,2]
[323708273,1714175443478,-500.0,0.00012868,2]
[323708274,1714175443487,-500.0,0.00012868,2]
[323708275,1714175443497,-500.0,0.00012868,2]
[323708276,1714175443506,-543.23,0.00012868,2]
[323708277,1714175443515,-500.0,0.00012868,2]
[323708278,1714175443524,-500.0,0.00012868,2]
[323708279,1714175443533,-500.0,0.00012868,2]
[323708280,1714175443542,-500.0,0.00012868,2]
[323708282,1714175443552,-421.72,0.00012868,2]
[323708283,1714175443561,-500.0,0.00012868,2]
[323708284,1714175443570,-500.0,0.00012868,2]
[323708286,1714175443580,-395.78,0.00012868,2]
[323708287,1714175443589,-500.0,0.00012868,2]
[323708288,1714175443598,-500.0,0.00012868,2]
[323708289,1714175443607,-275.19284405,0.00012868,2]
[323708290,1714175443617,-500.0,0.00012868,2]
[323708291,1714175443626,-593.41,0.00012868,2]
[323708292,1714175443636,-500.0,0.00012868,2]
[323708293,1714175443645,-500.0,0.00012868,2]
[323708294,1714175443654,-607.77,0.00012868,2]
[323708295,1714175443662,-500.0,0.00012868,2]
[323708296,1714175443671,-370.34453708,0.00012868,2]
[323708297,1714175443681,-344.96279521,0.00012868,2]
[323708298,1714175443691,-500.0,0.00012868,2]
[323708299,1714175443700,-500.0,0.00012868,2]
[323708300,1714175443709,-500.0,0.00012868,2]
[323708301,1714175443718,-500.0,0.00012868,2]
[323708302,1714175443727,-500.0,0.00012868,2]
[323708303,1714175443737,-370.84,0.00012868,2]
[323708304,1714175443746,-500.0,0.00012868,2]
[323708305,1714175443755,-500.0,0.00012868,2]
[323708306,1714175443765,-500.0,0.00012868,2]
[323708307,1714175443774,-500.0,0.00012868,2]
[323708308,1714175443783,-500.0,0.00012868,2]
[323708309,1714175443792,-500.0,0.00012868,2]
[323708310,1714175443802,-500.0,0.00012868,2]
[323708311,1714175443811,-500.0,0.00012868,2]
[323708312,1714175443823,-500.0,0.00012868,2]
[323708313,1714175443834,-500.0,0.00012868,2]
[323708314,1714175443845,-500.0,0.00012868,2]
[323708315,1714175443856,-500.0,0.00012868,2]
[323708316,1714175443865,-500.0,0.00012868,2]
[323708317,1714175443874,-504.37,0.00012868,2]
[323708318,1714175443883,-500.0,0.00012868,2]
[323708319,1714175443892,-500.0,0.00012868,2]
[323708320,1714175443900,-500.0,0.00012868,2]
[323708321,1714175443910,-500.0,0.00012868,2]
[323708322,1714175443918,-500.0,0.00012868,2]
[323708323,1714175443928,-500.0,0.00012868,2]
[323708324,1714175443937,-500.0,0.00012868,2]
[323708325,1714175443945,-500.0,0.00012868,2]
[323708326,1714175443954,-500.0,0.00012868,2]
[323708327,1714175443963,-500.0,0.00012868,2]
[323708328,1714175443971,-475.0321971,0.00012868,2]
[323708329,1714175443980,-415.4,0.00012868,2]
[323708330,1714175443989,-167.15535366,0.00012868,2]
[323708331,1714175443998,-236.65,0.00012868,2]
[323708332,1714175444007,-500.0,0.00012868,2]
[323708333,1714175444016,-500.0,0.00012868,2]
[323708334,1714175444025,-557.81071632,0.00012868,2]
[323708335,1714175444034,-326.15,0.00012868,2]
[323708336,1714175444043,-307.16,0.00012868,2]
[323708337,1714175444052,-500.0,0.00012868,2]
[323708338,1714175444061,-500.0,0.00012868,2]
[323708339,1714175444070,-500.0,0.00012868,2]
[323708340,1714175444079,-621.1779076,0.00012868,2]
[323708341,1714175444088,-500.0,0.00012868,2]
[323708342,1714175444097,-500.0,0.00012868,2]
[323708343,1714175444106,-500.0,0.00012868,2]
[323708344,1714175444117,-500.0,0.00012868,2]
[323708345,1714175444127,-473.8382297,0.00012868,2]
[323708346,1714175444137,-500.0,0.00012868,2]
[323708347,1714175444145,-500.0,0.00012868,2]
[323708348,1714175444155,-500.0,0.00012868,2]
[323708349,1714175444165,-546.57417225,0.00012868,2]
[323708350,1714175444174,-500.0,0.00012868,2]
[323708351,1714175444184,-500.0,0.00012868,2]
[323708352,1714175444193,-500.0,0.00012868,2]
[323708353,1714175444202,-500.0,0.00012868,2]
[323708354,1714175444212,-500.0,0.00012868,2]
[323708355,1714175444221,-500.0,0.00012868,2]
[323708356,1714175444230,-500.0,0.00012868,2]
[323708357,1714175444240,-500.0,0.00012868,2]
[323708358,1714175444256,-500.0,0.00012868,2]
[323708359,1714175444265,-500.0,0.00012868,2]
[323708360,1714175444274,-226.04,0.00012868,2]
[323708361,1714175444284,-500.99,0.00012868,2]
[323708362,1714175444293,-588.74,0.00012868,2]
[323708363,1714175444303,-500.0,0.00012868,2]
[323708364,1714175444312,-500.0,0.00012868,2]
[323708365,1714175444323,-607.47656605,0.00012868,2]
[323708366,1714175444332,-164.1036824,0.00012869,2]
[323708367,1714175444341,-17808.55,0.00012893,2]
[323708368,1714175444351,-500.0,0.00012894,2]
[323708369,1714175444361,-610.33580195,0.00012894,2]
[323708370,1714175444370,-455.0428049,0.00012894,2]
[323708371,1714175444379,-489.82,0.00012894,2]
[323708372,1714175444389,-500.0,0.00012894,2]
[323708373,1714175444398,-512.24672567,0.00012894,2]
[323708374,1714175444407,-500.0,0.00012894,2]
[323708375,1714175444417,-277.09,0.00012894,2]
[323708376,1714175444427,-561.52,0.00012894,2]
[323708377,1714175444436,-500.0,0.00012894,2]
[323708378,1714175444445,-483.55750578,0.00012894,2]
[323708379,1714175444454,-500.0,0.00012894,2]
[323708380,1714175444463,-500.0,0.00012894,2]
[323708381,1714175444472,-500.0,0.00012894,2]
[323708382,1714175444485,-500.0,0.00012894,2]
[323708383,1714175444494,-500.0,0.00012894,2]
[323708384,1714175444503,-500.0,0.00012894,2]
[323708385,1714175444512,-500.0,0.00012894,2]
[323708386,1714175444521,-500.0,0.00012894,2]
[323708387,1714175444530,-639.23838683,0.00012894,2]
[323708388,1714175444539,-500.0,0.00012894,2]
[323708389,1714175444548,-500.0,0.00012894,2]
[323708390,1714175444557,-500.0,0.00012894,2]
[323708391,1714175444566,-190.91,0.00012894,2]
[323708392,1714175444576,-500.0,0.00012894,2]
[323708393,1714175444585,-500.0,0.00012894,2]
[323708394,1714175444594,-500.0,0.00012894,2]
[323708395,1714175444603,-505.03957192,0.00012894,2]
[323708396,1714175444613,-500.0,0.00012894,2]
[323708397,1714175444622,-500.0,0.00012894,2]
[323708398,1714175444631,-500.0,0.00012894,2]
[323708399,1714175444640,-231.76,0.00012894,2]
[323708400,1714175444650,-162.84662944,0.00012894,2]
[323708401,1714175444659,-246.05,0.00012894,2]
[323708402,1714175444668,-470.0,0.00012894,2]
[323708403,1714175444678,-500.0,0.00012894,2]
[323708404,1714175444688,-800.0,0.00012895,2]
[323708405,1714175444697,-500.0,0.00012895,2]
[323708406,1714175444706,-1000.0,0.00012896,2]
[323708407,1714175444715,-500.0,0.00012896,2]
[323708408,1714175444724,-500.0,0.00012897,2]
[323708409,1714175444734,-500.0,0.00012897,2]
[323708410,1714175444743,-155.78336681,0.00012898,2]
[323708411,1714175444752,-500.0,0.00012898,2]
[323708412,1714175444762,-539.03946758,0.00012898,2]
[323708413,1714175444771,-500.0,0.00012898,2]
[323708414,1714175444781,-659.41,0.00012898,2]
[323708415,1714175445019,-500.0,0.00012898,2]
[323708416,1714175445028,-500.0,0.00012898,2]
[323708417,1714175445039,-500.0,0.00012898,2]
[323708418,1714175445049,-1463.62,0.00012898,2]
[323708419,1714175445058,-559.74,0.00012898,2]
[323708420,1714175445067,-500.0,0.00012898,2]
[323708421,1714175445076,-500.0,0.00012898,2]
[323708422,1714175445085,-500.0,0.00012898,2]
[323708423,1714175445095,-500.0,0.00012898,2]
[323708424,1714175445104,-500.0,0.00012898,2]
[323708425,1714175445113,-500.0,0.00012898,2]
[323708426,1714175445124,-500.0,0.00012898,2]
[323708427,1714175445133,-630.35,0.00012898,2]
[323708428,1714175445143,-500.0,0.00012898,2]
[323708429,1714175445152,-613.73,0.00012898,2]
[323708430,1714175445162,-439.79,0.00012898,2]
[323708431,1714175445170,-500.0,0.00012898,2]
[323708432,1714175445183,-500.0,0.00012898,2]
[323708433,1714175445192,-1049.4,0.00012898,2]
[323708434,1714175445201,-500.0,0.00012898,2]
[323708435,1714175445210,-500.0,0.00012898,2]
[323708436,1714175445219,-249.25,0.00012898,2]
[323708437,1714175445228,-933.29,0.00012898,2]
[323708438,1714175445238,-500.0,0.00012898,2]
[323708439,1714175445251,-500.0,0.00012898,2]
[323708440,1714175445259,-500.0,0.00012898,2]
[323708441,1714175445269,-500.0,0.00012898,2]
[323708442,1714175445278,-500.0,0.00012898,2]
[323708443,1714175445287,-500.0,0.00012898,2]
[323708444,1714175445296,-500.0,0.00012898,2]
[323708445,1714175445305,-500.0,0.00012898,2]
[323708446,1714175445314,-500.0,0.00012898,2]
[323708447,1714175445324,-500.0,0.00012898,2]
[323708448,1714175445333,-500.0,0.00012898,2]
[323708449,1714175445344,-412.57336681,0.00012898,2]
[323708450,1714175445354,-510.99,0.00012898,2]
[323708451,1714175445363,-500.0,0.00012898,2]
[323708452,1714175445372,-500.0,0.00012898,2]
[323708453,1714175445381,-500.0,0.00012898,2]
[323708454,1714175445390,-743.7,0.00012898,2]
[323708455,1714175445399,-500.0,0.00012898,2]
[323708456,1714175445408,-2047.82,0.00012898,2]
[323708457,1714175445417,-500.0,0.00012898,2]
[323708458,1714175445430,-500.0,0.00012898,2]
[323708459,1714175445440,-500.0,0.00012898,2]
[323708460,1714175445450,-500.0,0.00012898,2]
[323708461,1714175445459,-500.0,0.00012898,2]